bitfinex/quotes_BTCUSD_20260103
["timestamp","ask_amount","ask_price","bid_price","bid_amount"]
[1767437054033,0.01113399,89815.0,89811.0,0.01113449]
[1767437054277,0.01113399,89815.0,89810.0,0.01113461]
[1767437054882,0.01113412,89814.0,89809.0,0.01113474]
[1767437055443,0.01113424,89813.0,89809.0,0.01113474]
[1767437055642,0.01113412,89814.0,89810.0,0.01113461]
[1767437055862,0.01113412,89814.0,89809.0,0.01113474]
[1767437057589,0.01113424,89813.0,89809.0,0.01113474]
[1767437064190,0.01113424,89813.0,89809.0,0.01108574]
[1767437064393,0.01113387,89816.0,89811.0,0.01113449]
[1767437064593,0.01113362,89818.0,89813.0,0.07852367]
[1767437064833,0.0111335,89819.0,89814.0,0.07752455]
[1767437065236,0.01113312,89822.0,89815.0,0.07752442]
[1767437065437,0.01113312,89822.0,89817.0,0.07752417]
[1767437065643,0.01113325,89821.0,89817.0,0.06639043]
[1767437066001,0.01113325,89821.0,89816.0,0.01113387]
[1767437066765,0.01113325,89821.0,89815.0,0.01113399]
[1767437066939,0.01113325,89821.0,89816.0,0.01113387]
[1767437068072,0.01113325,89821.0,89817.0,0.01113374]
[1767437069747,0.01113312,89822.0,89817.0,0.01113374]
[1767437070639,0.01113312,89822.0,89818.0,0.01113362]
[1767437073182,0.01113312,89822.0,89817.0,0.01113374]
[1767437073377,0.01113312,89822.0,89818.0,0.01113362]
[1767437074390,0.01113325,89821.0,89817.0,0.01113374]
[1767437075026,0.01113325,89821.0,89816.0,0.01113387]
[1767437075451,0.01113325,89821.0,89817.0,0.01113374]
[1767437076181,0.01113325,89821.0,89816.0,0.01113387]
[1767437076405,0.01113325,89821.0,89819.0,0.22]
[1767437077344,0.01113325,89821.0,89810.0,0.02229461]
[1767437077345,0.01113387,89816.0,89810.0,0.02229461]
[1767437077544,0.01113399,89815.0,89810.0,0.02229461]
[1767437078814,0.01113412,89814.0,89810.0,0.01116]
[1767437078965,0.01113399,89815.0,89810.0,0.02229461]
[1767437079167,0.01113412,89814.0,89810.0,0.01116]
[1767437079369,0.01113412,89814.0,89810.0,0.02229461]
[1767437079909,0.06680383,89816.0,89811.0,0.01113449]
[1767437080110,0.01113374,89817.0,89812.0,0.01113436]
[1767437080311,0.01113387,89816.0,89810.0,0.02229461]
[1767437080515,0.01113412,89814.0,89810.0,0.02229461]
[1767437081735,0.01113412,89814.0,89810.0,0.01116]
[1767437081938,0.01113412,89814.0,89810.0,0.02229461]
[1767437082225,0.01113412,89814.0,89810.0,0.01116]
[1767437082528,0.01113412,89814.0,89810.0,0.02229461]
[1767437083282,0.01113399,89815.0,89810.0,0.02229461]
[1767437083730,0.01113412,89814.0,89810.0,0.02229461]
[1767437084320,0.01113424,89813.0,89810.0,0.01116]
[1767437084581,0.01113412,89814.0,89810.0,0.02229461]
[1767437084759,0.01113399,89815.0,89810.0,0.02229461]
[1767437084967,0.01113412,89814.0,89810.0,0.01116]
[1767437085552,0.01113424,89813.0,89810.0,0.01116]
[1767437086099,0.01113412,89814.0,89810.0,0.02229461]
[1767437086420,0.01113412,89814.0,89810.0,0.01116]
[1767437086695,0.01113412,89814.0,89810.0,0.02229461]
[1767437088200,0.01113424,89813.0,89806.0,0.00064473]
[1767437088348,0.01113436,89812.0,89806.0,0.01177984]
[1767437088543,0.01113449,89811.0,89806.0,0.00064473]
[1767437088784,0.01113474,89809.0,89806.0,0.00064473]
[1767437089702,0.01113461,89810.0,89806.0,0.00064473]
[1767437090007,0.01113461,89810.0,89809.0,0.000999]
[1767437090420,0.01113461,89810.0,89806.0,0.01177984]
[1767437091369,0.01113461,89810.0,89806.0,0.00064473]
[1767437092007,0.01113461,89810.0,89806.0,0.01177984]
[1767437093041,0.01113449,89811.0,89806.0,0.01177984]
[1767437094915,0.01113461,89810.0,89806.0,0.01177984]
[1767437095334,0.01113449,89811.0,89810.0,0.000999]
[1767437095711,0.01113449,89811.0,89806.0,0.01177984]
[1767437096302,0.0821917,89811.0,89805.0,0.01113523]
[1767437096632,0.01113449,89811.0,89805.0,0.01113523]
[1767437096914,0.01113449,89811.0,89806.0,0.01113511]
[1767437098157,0.01113461,89810.0,89805.0,0.01113523]
[1767437098495,0.01113461,89810.0,89806.0,0.01113511]
[1767437099615,0.01113461,89810.0,89805.0,0.01113523]
[1767437100021,0.01113461,89810.0,89808.0,0.07]
[1767437101676,0.07092193,89809.0,89808.0,0.07]
[1767437102212,0.06680824,89810.0,89794.0,0.04452]
[1767437102213,0.01113573,89801.0,89794.0,0.04452]
[1767437102418,0.05982856,89796.0,89791.0,0.01113697]
[1767437102658,0.0111366,89794.0,89787.0,0.01116]
[1767437102831,0.0111366,89794.0,89788.0,0.01113734]
[1767437103032,0.0111366,89794.0,89787.0,0.07798428]
[1767437103033,0.01113697,89791.0,89787.0,0.01116]
[1767437103233,0.06682012,89794.0,89791.0,0.000999]
[1767437103453,0.0111366,89794.0,89791.0,0.000999]
[1767437103773,0.0111366,89794.0,89787.0,0.07798436]
[1767437103774,0.01113684,89792.0,89787.0,0.01116]
[1767437104023,0.01113697,89791.0,89787.0,0.02229746]
[1767437104234,0.01113697,89791.0,89787.0,0.01116]
[1767437104235,0.01113709,89790.0,89787.0,0.01116]
[1767437104348,0.01113697,89791.0,89787.0,0.01116]
[1767437104758,0.01113684,89792.0,89787.0,0.02229746]
[1767437104966,0.01113684,89792.0,89787.0,0.01116]
[1767437105182,0.01113684,89792.0,89789.0,0.11139951]
[1767437106308,0.01113672,89793.0,89789.0,0.11139951]
[1767437106928,0.01113684,89792.0,89789.0,0.11139951]
[1767437107378,0.0668209,89793.0,89787.0,0.01116]
[1767437107585,0.01113672,89793.0,89792.0,0.000999]
[1767437107822,0.01113684,89792.0,89787.0,0.02229746]
[1767437108196,0.0111366,89794.0,89787.0,0.07798429]
[1767437108710,0.01113672,89793.0,89789.0,0.01113722]
[1767437108965,0.01113672,89793.0,89788.0,0.01113734]
[1767437109316,0.0111366,89794.0,89789.0,0.01113722]
[1767437109743,0.01113672,89793.0,89788.0,0.01113734]
[1767437111114,0.0111366,89794.0,89789.0,0.01113722]
[1767437111315,0.01113672,89793.0,89788.0,0.01113734]
[1767437111519,0.01113647,89795.0,89789.0,0.01113722]
[1767437111770,0.01113647,89795.0,89793.0,0.000999]
[1767437112024,0.01113647,89795.0,89791.0,0.01113697]
[1767437112223,0.0111923,89796.0,89791.0,0.01113697]
[1767437112803,0.01113598,89799.0,89796.0,0.00094305]
[1767437113136,0.01113598,89799.0,89793.0,0.01113672]
[1767437113782,0.0111361,89798.0,89793.0,0.01113672]
[1767437114011,0.06681665,89798.0,89792.0,0.01113684]
[1767437114140,0.01113635,89796.0,89791.0,0.01113697]
[1767437115296,0.01113647,89795.0,89790.0,0.01113709]
[1767437115662,0.0111366,89794.0,89790.0,0.01113709]
[1767437116552,0.01113647,89795.0,89790.0,0.01113709]
[1767437117049,0.0111366,89794.0,89790.0,0.01113709]
[1767437119012,0.0111366,89794.0,89789.0,0.01113722]
[1767437119217,0.01113672,89793.0,89787.0,0.01113746]
[1767437119438,0.0111366,89794.0,89789.0,0.01113722]
[1767437119640,0.01113672,89793.0,89788.0,0.19354404]
[1767437120378,0.0111366,89794.0,89789.0,0.01113722]
[1767437122158,0.01113647,89795.0,89790.0,0.01113709]
[1767437124281,0.0668148,89801.0,89791.0,0.08214416]
[1767437124484,0.01116,89800.0,89796.0,0.07100719]
[1767437124688,0.02229585,89800.0,89796.0,0.07100719]
[1767437125268,0.0111356,89802.0,89797.0,0.01113622]
[1767437125448,0.01113573,89801.0,89798.0,0.07100719]
[1767437126030,0.01113573,89801.0,89798.0,0.06240051]
[1767437126481,0.01113573,89801.0,89796.0,0.08214354]
[1767437127161,0.01113573,89801.0,89797.0,0.07100719]
[1767437127329,0.01113511,89806.0,89802.0,0.07100719]
[1767437127529,0.01113523,89805.0,89802.0,0.07100719]
[1767437127764,0.01113548,89803.0,89800.0,0.07100719]
[1767437127950,0.01113536,89804.0,89800.0,0.07100719]
[1767437128388,0.01113523,89805.0,89800.0,0.08214304]
[1767437129861,0.01113511,89806.0,89801.0,0.09008012]
[1767437130067,0.01113498,89807.0,89802.0,0.0111356]
[1767437130273,0.01113474,89809.0,89804.0,0.01113536]
[1767437131053,0.01113486,89808.0,89803.0,0.01113548]
[1767437131435,0.01113486,89808.0,89801.0,0.14575835]
[1767437131436,0.01113498,89807.0,89801.0,0.09008012]
[1767437132444,0.01113498,89807.0,89802.0,0.0111356]
[1767437132638,0.01113498,89807.0,89803.0,0.01113548]
[1767437133253,0.01113498,89807.0,89802.0,0.0111356]
[1767437134555,0.01113486,89808.0,89803.0,0.01113548]
[1767437136180,0.01113474,89809.0,89805.0,0.09007962]
[1767437136406,0.01113474,89809.0,89805.0,0.07894439]
[1767437136570,0.01113474,89809.0,89805.0,0.01113523]
[1767437137658,0.01113461,89810.0,89805.0,0.01113523]
[1767437138446,0.02229449,89811.0,89806.0,0.01113511]
[1767437140000,0.01113362,89818.0,89811.0,0.09107788]
[1767437140180,0.01116,89817.0,89811.0,0.14674988]
[1767437140390,0.02229374,89817.0,89811.0,0.14575088]
[1767437141335,0.01113399,89815.0,89811.0,0.09007888]
[1767437141511,0.01113387,89816.0,89811.0,0.09007888]
[1767437143050,0.01113374,89817.0,89811.0,0.09007888]
[1767437144277,6.9e-07,89814.0,89811.0,0.09007888]
[1767437146020,6.9e-07,89814.0,89812.0,0.07894439]
[1767437146702,6.9e-07,89814.0,89812.0,0.07845039]
[1767437149273,6.9e-07,89814.0,89810.0,0.090079]
[1767437149488,0.01113481,89814.0,89810.0,0.090079]
[1767437149676,6.9e-07,89814.0,89810.0,0.090079]
[1767437153898,0.01113481,89814.0,89810.0,0.07894439]
[1767437154314,0.01113481,89814.0,89810.0,0.090079]
[1767437155799,6.9e-07,89814.0,89810.0,0.090079]
[1767437157144,6.9e-07,89814.0,89810.0,0.01113461]
[1767437158250,0.01113481,89814.0,89810.0,0.090079]
[1767437161600,0.01113481,89814.0,89810.0,0.07894439]
[1767437161993,0.01113449,89811.0,89805.0,0.07544077]
[1767437162197,0.01113449,89811.0,89804.0,0.18937119]
[1767437162198,0.01113461,89810.0,89804.0,0.13369487]
[1767437162399,0.01113461,89810.0,89805.0,0.01113523]
[1767437162601,0.01113474,89809.0,89804.0,0.20913564]
[1767437162746,0.01113474,89809.0,89805.0,0.07544077]
[1767437162945,0.01113461,89810.0,89805.0,0.086576]
[1767437163142,0.01113474,89809.0,89805.0,0.086576]
[1767437163478,0.01113474,89809.0,89805.0,0.07544077]
[1767437163679,0.01113498,89807.0,89804.0,0.12255951]
[1767437163889,0.06680996,89807.0,89804.0,0.12255951]
[1767437164083,0.01113498,89807.0,89804.0,0.12255951]
[1767437164283,0.06681012,89807.0,89804.0,0.12255951]
[1767437166325,0.01113511,89806.0,89800.0,0.01113585]
[1767437166485,0.0668132,89803.0,89797.0,0.01116]
[1767437166681,0.0111356,89802.0,89797.0,0.01116]
[1767437166885,0.01113523,89805.0,89802.0,0.000999]
[1767437167099,0.01113548,89803.0,89798.0,0.0111361]
[1767437167288,0.01113548,89803.0,89799.0,0.01113598]
[1767437167886,0.01113548,89803.0,89799.0,0.08657675]
[1767437168107,0.01113548,89803.0,89799.0,0.01113598]
[1767437168309,0.01113536,89804.0,89803.0,0.000999]
[1767437168525,0.01077435,89805.0,89803.0,0.000999]
[1767437168722,0.01077435,89805.0,89800.0,0.01113585]
[1767437168944,0.01113536,89804.0,89799.0,0.01113598]
[1767437170746,0.01113536,89804.0,89800.0,0.01113585]
[1767437172601,0.01113536,89804.0,89799.0,0.01113598]
[1767437173527,0.01113548,89803.0,89798.0,0.0111361]
[1767437173689,0.0111356,89802.0,89798.0,0.0111361]
[1767437175122,0.01113573,89801.0,89797.0,0.02229622]
[1767437175321,0.01113573,89801.0,89797.0,0.01116]
[1767437175731,0.01113573,89801.0,89797.0,0.02229622]
[1767437175959,0.0111356,89802.0,89797.0,0.02229622]
[1767437176322,0.06681259,89804.0,89799.0,0.01113598]
[1767437176633,0.01077435,89805.0,89804.0,0.000999]
[1767437176853,0.01077435,89805.0,89801.0,0.01113573]
[1767437177260,0.01113511,89806.0,89801.0,0.01113573]
[1767437179387,0.01113523,89805.0,89801.0,0.01113573]
[1767437179602,0.01113536,89804.0,89800.0,0.01113585]
[1767437179805,0.01113536,89804.0,89799.0,0.01113598]
[1767437180910,0.01113523,89805.0,89800.0,0.01113585]
[1767437181325,0.01113523,89805.0,89801.0,0.01113573]
[1767437182325,0.01113523,89805.0,89800.0,0.01113585]
[1767437183340,0.01113523,89805.0,89801.0,0.01113573]
[1767437184034,0.01113523,89805.0,89800.0,0.01113585]
[1767437184890,0.01113536,89804.0,89801.0,0.07544077]
[1767437185809,0.01113523,89805.0,89801.0,0.07544077]
[1767437185964,0.06681105,89806.0,89804.0,0.07544077]
[1767437186169,0.01113498,89807.0,89804.0,0.07544077]
[1767437193929,0.05567556,89806.0,89804.0,0.07544077]
[1767437194773,0.01113523,89805.0,89801.0,0.07993077]
[1767437195330,0.01113523,89805.0,89801.0,0.0910665]
[1767437195948,0.01113523,89805.0,89801.0,0.07993077]
[1767437196345,0.01113523,89805.0,89801.0,0.0910665]
[1767437197276,0.01113498,89807.0,89802.0,0.0111356]
[1767437197581,0.01113498,89807.0,89805.0,0.000999]
[1767437197782,0.01113498,89807.0,89802.0,0.0111356]
[1767437198333,0.01113511,89806.0,89801.0,0.01113573]
[1767437199816,0.01113511,89806.0,89802.0,0.0111356]
[1767437201337,0.01113511,89806.0,89799.0,0.0668155]
[1767437201338,0.01113523,89805.0,89799.0,0.0668155]
[1767437202193,0.01113573,89801.0,89797.0,0.01116]
[1767437202469,0.01113573,89801.0,89797.0,0.02229622]
[1767437202873,0.01113573,89801.0,89797.0,0.10222699]
[1767437203613,0.01113573,89801.0,89798.0,0.07993077]
[1767437204967,0.01113585,89800.0,89797.0,0.01116]
[1767437205171,0.01113585,89800.0,89797.0,0.09109077]
[1767437205711,0.05568026,89799.0,89797.0,0.09109077]
[1767437207859,0.05568026,89799.0,89797.0,0.01116]
[1767437208015,0.06681564,89800.0,89797.0,0.01116]
[1767437208601,0.05568035,89799.0,89797.0,0.01116]
[1767437209200,0.05568035,89799.0,89797.0,0.09109077]
[1767437209599,0.05568035,89799.0,89797.0,0.07993077]
[1767437211060,0.06681633,89799.0,89796.0,0.01116]
[1767437211526,0.06681633,89799.0,89796.0,0.09109077]
[1767437212865,0.06681633,89799.0,89796.0,0.01116]
[1767437213075,0.05568052,89798.0,89796.0,0.01116]
[1767437214390,0.0111366,89794.0,89791.0,0.07993077]
[1767437214601,0.0111366,89794.0,89793.0,0.01116]
[1767437214602,0.0101376,89794.0,89793.0,0.01116]
[1767437214891,0.05568238,89795.0,89793.0,0.01116]
[1767437215099,0.05568238,89795.0,89793.0,0.010161]
[1767437216986,0.0111366,89794.0,89789.0,0.01113722]
[1767437217695,0.01113672,89793.0,89788.0,0.01113734]
[1767437219424,0.01113672,89793.0,89789.0,0.01113722]
[1767437220631,0.0111366,89794.0,89790.0,0.01113709]
[1767437221613,0.05568238,89795.0,89790.0,0.01113709]
[1767437221614,0.01113647,89795.0,89794.0,0.000999]
[1767437222014,0.0111366,89794.0,89790.0,0.01113709]
[1767437222234,0.0111366,89794.0,89789.0,0.01113722]
[1767437222964,0.0111366,89794.0,89790.0,0.01113709]
[1767437223179,0.01113672,89793.0,89787.0,0.02229746]
[1767437223558,0.01113684,89792.0,89788.0,0.01113734]
[1767437224845,0.01113684,89792.0,89787.0,0.02229746]
[1767437226683,0.01113697,89791.0,89787.0,0.01116]
[1767437226882,0.01113697,89791.0,89782.0,0.06682816]
[1767437226883,0.01113734,89788.0,89782.0,0.01116]
[1767437227261,0.01113759,89786.0,89782.0,0.01116]
[1767437227463,0.01113746,89787.0,89783.0,0.01113796]
[1767437227668,0.01113734,89788.0,89783.0,0.01113796]
[1767437227877,0.01113722,89789.0,89788.0,0.000999]
[1767437228098,0.01113722,89789.0,89785.0,0.01113771]
[1767437228274,0.01113734,89788.0,89784.0,0.01113784]
[1767437228480,0.01113734,89788.0,89783.0,0.01113796]
[1767437228900,0.01113734,89788.0,89784.0,0.01113784]
[1767437229281,0.01113759,89786.0,89782.0,0.01116]
[1767437229915,0.01113746,89787.0,89782.0,0.02116809]
[1767437230188,0.01109759,89786.0,89782.0,0.01003]
[1767437231154,0.01114159,89786.0,89782.0,0.01003]
[1767437231391,0.01113771,89785.0,89782.0,0.01003]
[1767437232760,0.01114159,89786.0,89782.0,0.01003]
[1767437233362,0.01113771,89785.0,89782.0,0.01003]
[1767437233673,0.01113771,89785.0,89782.0,0.009031]
[1767437234746,0.01114159,89786.0,89782.0,0.009031]
[1767437234947,0.01114159,89786.0,89782.0,0.02016909]
[1767437235595,0.01114159,89786.0,89782.0,0.009031]
[1767437235596,0.01014259,89786.0,89782.0,0.009031]
[1767437235772,0.01113771,89785.0,89782.0,0.009031]
[1767437236217,0.01014259,89786.0,89782.0,0.009031]
[1767437237393,0.01113771,89785.0,89782.0,0.009031]
[1767437247401,0.01014259,89786.0,89782.0,0.009031]
[1767437248088,0.01014259,89786.0,89782.0,0.08919379]
[1767437248289,0.01014259,89786.0,89785.0,0.08016279]
[1767437248489,0.01014259,89786.0,89785.0,0.07916379]
[1767437249518,0.00914359,89786.0,89785.0,0.07916379]
[1767437251284,0.01113734,89788.0,89785.0,0.07916379]
[1767437251493,0.01113672,89793.0,89785.0,0.14604567]
[1767437251698,0.01113697,89791.0,89787.0,0.07638678]
[1767437252352,0.01113684,89792.0,89787.0,0.08752424]
[1767437252512,0.01113697,89791.0,89787.0,0.08752424]
[1767437252727,0.01113697,89791.0,89787.0,0.07638678]
[1767437253153,0.01113697,89791.0,89787.0,0.08752424]
[1767437254821,0.01113697,89791.0,89786.0,0.01113759]
[1767437255022,0.05568743,89787.0,89785.0,5.595e-05]
[1767437255372,0.01113833,89780.0,89776.0,0.07638678]
[1767437255588,0.01113833,89780.0,89776.0,0.08756961]
[1767437255808,0.01113809,89782.0,89777.0,0.01113871]
[1767437256374,0.01113809,89782.0,89776.0,0.01118283]
[1767437256375,0.000999,89777.0,89776.0,0.01118283]
[1767437256574,0.01113821,89781.0,89776.0,0.01118283]
[1767437257201,0.01113809,89782.0,89777.0,0.01113871]
[1767437257403,0.01113809,89782.0,89778.0,0.01113858]
[1767437257877,0.01113821,89781.0,89777.0,0.01113871]
[1767437258481,0.01113833,89780.0,89776.0,0.01118283]
[1767437259438,0.01113809,89782.0,89778.0,0.01113858]
[1767437259821,0.01113796,89783.0,89778.0,0.01113858]
[1767437260453,0.01113784,89784.0,89779.0,0.01113846]
[1767437261199,0.01113759,89786.0,89781.0,0.01113821]
[1767437261423,0.01113759,89786.0,89780.0,0.1432168]
[1767437261556,0.01113771,89785.0,89782.0,0.07638678]
[1767437261750,0.01113771,89785.0,89781.0,0.01113821]
[1767437261991,0.01113771,89785.0,89780.0,0.08752511]
[1767437262191,0.06682266,89790.0,89783.0,0.01113796]
[1767437262407,0.01113759,89786.0,89782.0,0.01113809]
[1767437262553,0.01113759,89786.0,89781.0,0.01113821]
[1767437263068,0.01113759,89786.0,89782.0,0.01113809]
[1767437263995,0.01113759,89786.0,89781.0,0.01113821]
[1767437265188,0.05568677,89788.0,89782.0,0.01113809]
[1767437265412,0.01113759,89786.0,89781.0,0.01113821]
[1767437265969,0.01113759,89786.0,89782.0,0.01113809]
[1767437267012,0.01113759,89786.0,89781.0,0.01113821]
[1767437267193,0.01113759,89786.0,89782.0,0.01113809]
[1767437268297,0.01113759,89786.0,89781.0,0.01113821]
[1767437268659,0.01113759,89786.0,89782.0,0.01113809]
[1767437270196,0.05568677,89788.0,89782.0,0.01113809]
[1767437270807,0.05568677,89788.0,89783.0,0.01113796]
[1767437274535,0.06682266,89790.0,89783.0,0.01113796]
[1767437276486,0.05568653,89789.0,89783.0,0.01113796]
[1767437277453,0.01113709,89790.0,89786.0,0.01113759]
[1767437278524,0.01113697,89791.0,89786.0,0.01113759]
[1767437278899,0.01113697,89791.0,89787.0,0.01113746]
[1767437279345,0.02229684,89792.0,89788.0,0.01113734]
[1767437279743,0.02229684,89792.0,89787.0,0.08632427]
[1767437280872,0.01113635,89796.0,89790.0,0.01113709]
[1767437281047,0.01113635,89796.0,89790.0,0.0863239]
[1767437281048,0.01116,89793.0,89790.0,0.0863239]
[1767437281965,0.000999,89790.0,89789.0,0.07518681]
[1767437282314,0.02229672,89793.0,89789.0,0.07518681]
[1767437282955,0.01113684,89792.0,89789.0,0.07418781]
[1767437285055,0.06682108,89792.0,89789.0,0.07418781]
[1767437285330,0.01113722,89789.0,89785.0,0.07518681]
[1767437285533,0.0668223,89791.0,89785.0,0.08632452]
[1767437285741,0.01113697,89791.0,89785.0,0.08632452]
[1767437285942,0.01113709,89790.0,89785.0,0.08632452]
[1767437286146,0.01113734,89788.0,89785.0,0.07518681]
[1767437286641,0.01113722,89789.0,89785.0,0.07518681]
[1767437287538,0.01113734,89788.0,89785.0,0.07518681]
[1767437287916,0.01113759,89786.0,89783.0,0.07518681]
[1767437288489,0.01113771,89785.0,89782.0,0.01116]
[1767437288689,0.05568976,89784.0,89782.0,0.01116]
[1767437289330,0.06682673,89785.0,89782.0,0.01116]
[1767437294211,0.01113771,89785.0,89782.0,0.01116]
[1767437295530,0.01113759,89786.0,89785.0,0.000999]
[1767437296027,0.01113759,89786.0,89783.0,0.07518681]
[1767437296576,0.01113759,89786.0,89779.0,0.01113846]
[1767437296577,0.01113784,89784.0,89779.0,0.01113846]
[1767437297000,0.01113796,89783.0,89779.0,0.01113846]
[1767437298435,0.01113809,89782.0,89778.0,0.01113858]
[1767437299648,0.01113796,89783.0,89778.0,0.01113858]
[1767437300538,0.01113796,89783.0,89779.0,0.01113846]
[1767437301114,0.01113809,89782.0,89777.0,0.06683177]
[1767437301340,0.01113796,89783.0,89778.0,0.01113858]
[1767437301518,0.01113809,89782.0,89778.0,0.01113858]
[1767437301720,0.01113796,89783.0,89779.0,0.01113846]
[1767437310182,0.01113784,89784.0,89780.0,0.01113833]
[1767437310396,0.01113759,89786.0,89784.0,0.000999]
[1767437310555,0.01113759,89786.0,89782.0,0.01113809]
[1767437310758,0.01113771,89785.0,89781.0,0.01113821]
[1767437310958,0.01113796,89783.0,89779.0,0.01113846]
[1767437311184,0.01113796,89783.0,89778.0,0.06683099]
[1767437311353,0.01113809,89782.0,89777.0,0.01113871]
[1767437311553,0.01113796,89783.0,89778.0,0.01113858]
[1767437312372,0.06682822,89783.0,89778.0,0.01113858]
[1767437312840,0.01113809,89782.0,89778.0,0.01113858]
[1767437313637,0.01113796,89783.0,89778.0,0.01113858]
[1767437314208,0.01113809,89782.0,89778.0,0.01113858]
[1767437315265,0.01113796,89783.0,89779.0,0.01113846]
[1767437315765,0.01113796,89783.0,89778.0,0.01113858]
[1767437317437,0.01113796,89783.0,89779.0,0.01113846]
[1767437319157,0.01113796,89783.0,89778.0,0.01113858]
[1767437319303,0.01113809,89782.0,89776.0,0.07803662]
[1767437319499,0.01113821,89781.0,89777.0,0.01113871]
[1767437319700,0.01113821,89781.0,89776.0,0.02234283]
[1767437319905,0.01113821,89781.0,89777.0,0.01113871]
[1767437321320,0.01113809,89782.0,89778.0,0.01113858]
[1767437321865,0.01113809,89782.0,89777.0,0.01113871]
[1767437322015,0.01113809,89782.0,89778.0,0.01113858]
[1767437322215,0.06682822,89783.0,89778.0,0.01113858]
[1767437324068,0.01113821,89781.0,89777.0,0.01113871]
[1767437327562,0.01113809,89782.0,89777.0,0.01113871]
[1767437328249,0.01113821,89781.0,89777.0,0.01113871]
[1767437328479,0.01113846,89779.0,89776.0,0.011204]
[1767437328607,0.01113833,89780.0,89776.0,0.011204]
[1767437329011,0.01113833,89780.0,89776.0,0.02234283]
[1767437334062,0.01113846,89779.0,89776.0,0.011204]
[1767437334261,0.06683115,89779.0,89776.0,0.011204]
[1767437336347,0.01113846,89779.0,89776.0,0.011204]
[1767437338915,0.01113833,89780.0,89776.0,0.011204]
[1767437342275,0.06682975,89781.0,89776.0,0.011204]
[1767437342276,0.01113821,89781.0,89780.0,0.000999]
[1767437342844,0.01113821,89781.0,89777.0,0.01113871]
[1767437343459,0.01113809,89782.0,89777.0,0.01113871]
[1767437343667,0.01113771,89785.0,89782.0,0.000999]
[1767437343853,0.01113784,89784.0,89780.0,0.01113833]
[1767437344993,0.01113784,89784.0,89779.0,0.01113846]
[1767437345799,0.01113796,89783.0,89778.0,0.01113858]
[1767437348958,0.01113796,89783.0,89779.0,0.01113846]
[1767437349229,0.01113796,89783.0,89778.0,0.01113858]
[1767437351579,0.01113796,89783.0,89779.0,0.01113846]
[1767437355898,0.01113784,89784.0,89779.0,0.01113846]
[1767437358013,0.01113796,89783.0,89779.0,0.01113846]
[1767437359696,0.01113809,89782.0,89777.0,0.09001225]
[1767437359909,0.01113796,89783.0,89779.0,0.01113846]
[1767437360311,0.01113796,89783.0,89778.0,0.01113858]
[1767437360853,0.01113784,89784.0,89779.0,0.01113846]
[1767437361429,0.01113796,89783.0,89778.0,0.09001212]
[1767437361624,0.06682691,89785.0,89780.0,0.01113833]
[1767437361958,0.01113796,89783.0,89779.0,0.01113846]
[1767437362410,0.01113784,89784.0,89779.0,0.01113846]
[1767437362952,0.01113796,89783.0,89778.0,0.09001212]
[1767437363311,0.01113796,89783.0,89779.0,0.01113846]
[1767437365046,0.01113796,89783.0,89778.0,0.09001212]
[1767437367555,0.01113809,89782.0,89778.0,0.07887354]
[1767437371449,0.01113796,89783.0,89782.0,0.000999]
[1767437371596,0.01113809,89782.0,89778.0,0.07061941]
[1767437372745,0.01113809,89782.0,89778.0,0.08175799]
[1767437373639,0.01113796,89783.0,89778.0,0.08175799]
[1767437373826,0.01113809,89782.0,89778.0,0.08175799]
[1767437377957,0.01113809,89782.0,89778.0,0.07061941]
[1767437378164,0.01113821,89781.0,89776.0,0.02234283]
[1767437378365,0.01113821,89781.0,89776.0,0.09633532]
[1767437378880,0.01113821,89781.0,89777.0,0.01113871]
[1767437379593,0.01113809,89782.0,89777.0,0.01113871]
[1767437381596,0.01113821,89781.0,89777.0,0.0851312]
[1767437382826,0.01113821,89781.0,89777.0,0.07399249]
[1767437385652,0.01113809,89782.0,89777.0,0.0851312]
[1767437386004,0.01113821,89781.0,89777.0,0.07399249]
[1767437388160,0.01113809,89782.0,89777.0,0.07399249]
[1767437388360,0.01113809,89782.0,89781.0,0.000999]
[1767437388782,0.01113821,89781.0,89777.0,0.0851312]
[1767437389561,0.01113809,89782.0,89777.0,0.0851312]
[1767437389999,0.01113809,89782.0,89778.0,0.01113858]
[1767437390218,0.01113809,89782.0,89777.0,0.0851312]
[1767437390788,0.01113809,89782.0,89778.0,0.01113858]
[1767437396646,0.01116,89791.0,89789.0,0.07399249]
[1767437396824,0.01113684,89792.0,89789.0,0.07399249]
[1767437397033,0.01113684,89792.0,89787.0,0.01113746]
[1767437397438,0.01116,89793.0,89789.0,0.01113722]
[1767437397678,0.02229672,89793.0,89789.0,0.01113722]
[1767437397889,0.010161,89793.0,89789.0,0.08512971]
[1767437398078,0.01113647,89795.0,89793.0,0.07399249]
[1767437398283,0.01116,89796.0,89793.0,0.07399249]
[1767437398490,0.01113635,89796.0,89793.0,0.07399249]
[1767437398712,0.01116,89797.0,89793.0,0.08508921]
[1767437398893,0.02229622,89797.0,89793.0,0.07395249]
[1767437399094,0.01113635,89796.0,89793.0,0.07395249]
[1767437399299,0.01113635,89796.0,89792.0,0.01113684]
[1767437399722,0.01113635,89796.0,89792.0,0.08578513]
[1767437399924,0.0111361,89798.0,89794.0,0.07464829]
[1767437400127,0.01113622,89797.0,89794.0,0.07364929]
[1767437401141,0.0111361,89798.0,89794.0,0.07364929]
[1767437401838,0.0111361,89798.0,89793.0,0.01113672]
[1767437402344,0.0111361,89798.0,89794.0,0.0111366]
[1767437402546,0.0111361,89798.0,89793.0,0.08578501]
[1767437402955,0.01113548,89803.0,89799.0,0.07464829]
[1767437403109,0.01113511,89806.0,89796.0,0.01113635]
[1767437403110,0.02229511,89806.0,89796.0,0.01113635]
[1767437403330,0.05567793,89803.0,89796.0,0.01113635]
[1767437403883,0.05567793,89803.0,89797.0,0.01113622]
[1767437403884,0.0111356,89802.0,89797.0,0.01113622]
[1767437404267,0.04455599,89802.0,89797.0,0.01113622]
[1767437404414,0.04455599,89802.0,89798.0,0.00975333]
[1767437405263,0.03276914,89802.0,89798.0,0.0111361]
[1767437405478,0.03276914,89802.0,89797.0,0.01113622]
[1767437405658,0.01113573,89801.0,89797.0,0.01113622]
[1767437406289,0.04390474,89802.0,89797.0,0.01113622]
[1767437406501,0.04390474,89802.0,89798.0,0.0111361]
[1767437406847,0.03276914,89802.0,89798.0,0.0111361]
[1767437407252,0.0111356,89802.0,89798.0,0.0111361]
[1767437408354,0.04455494,89803.0,89798.0,0.0111361]
[1767437410672,0.01113573,89801.0,89797.0,0.01113622]
[1767437410794,0.01113573,89801.0,89796.0,0.01113635]
[1767437411014,0.01113573,89801.0,89796.0,0.05796612]
[1767437411220,0.01113573,89801.0,89796.0,0.04682977]
[1767437411406,0.01113573,89801.0,89793.0,0.01113672]
[1767437411407,0.06681644,89799.0,89793.0,0.04683064]
[1767437411607,0.01113598,89799.0,89793.0,0.04683064]
[1767437411846,0.01113598,89799.0,89795.0,0.04683039]
[1767437412222,0.01113598,89799.0,89795.0,0.01113647]
[1767437412760,0.06681513,89800.0,89795.0,0.01113647]
[1767437413525,0.01113585,89800.0,89795.0,0.01113647]
[1767437414351,0.01113598,89799.0,89794.0,0.0111366]